fUST/lending_fUST_20250605
["ID","MTS","AMOUNT","RATE_DAILY","PERIOD"]
[364403125,1749091841127,-339.7022397,0.00019263,2]
[364403127,1749091841136,-1642.92217957,0.00019314,2]
[364403129,1749091841146,-834.75,0.00019336,2]
[364403131,1749091841158,-621.63,0.00019336,2]
[364403133,1749091841167,-440.0,0.00019336,2]
[364403135,1749091841176,-440.0,0.00019337,2]
[364403137,1749091841185,-424.78,0.00019337,2]
[364403139,1749091841194,-1053.49,0.00019337,2]
[364403141,1749091841203,-1260.56,0.00019337,2]
[364403143,1749091841213,-482.80337238,0.00019337,2]
[364403145,1749091841223,-440.0,0.00019337,2]
[364403147,1749091841232,-440.0,0.00019337,2]
[364403149,1749091841241,-321.61,0.00019337,2]
[364403151,1749091841251,-440.0,0.00019337,2]
[364403153,1749091841261,-440.0,0.00019337,2]
[364403155,1749091841270,-1147.19,0.00019337,2]
[364403157,1749091841280,-440.0,0.00019337,2]
[364403160,1749091841290,-440.0,0.00019338,2]
[364403162,1749091841299,-604.77,0.00019338,2]
[364403163,1749091841308,-549.16,0.00019338,2]
[364403166,1749091841318,-440.0,0.00019338,2]
[364403167,1749091841327,-556.21,0.00019338,2]
[364403169,1749091841336,-600.26,0.00019338,2]
[364403171,1749091841346,-1059.47,0.00019338,2]
[364403173,1749091841355,-440.0,0.00019338,2]
[364403175,1749091841365,-151.0,0.000195,2]
[364403177,1749091841374,-151.0,0.000195,2]
[364403180,1749091841385,-1642.92217957,0.00019521,2]
[364403182,1749091841397,-834.75,0.0001961,2]
[364403184,1749091841407,-621.63,0.0001961,2]
[364403186,1749091841417,-440.0,0.0001961,2]
[364403188,1749091841426,-440.0,0.00019611,2]
[364403189,1749091841436,-424.78,0.00019611,2]
[364403192,1749091841445,-1053.49,0.00019611,2]
[364403194,1749091841455,-1260.56,0.00019611,2]
[364403196,1749091841465,-440.0,0.00019611,2]
[364403197,1749091841474,-440.0,0.00019611,2]
[364403200,1749091841485,-440.0,0.00019611,2]
[364403202,1749091841495,-345.90021083,0.00019611,2]
[364403204,1749091841505,-1147.19,0.00019611,2]
[364403206,1749091841515,-440.0,0.00019612,2]
[364403208,1749091841524,-604.77,0.00019612,2]
[364403210,1749091841534,-549.16,0.00019612,2]
[364403212,1749091841545,-440.0,0.00019612,2]
[364403214,1749091841554,-556.21,0.00019612,2]
[364403215,1749091841564,-600.26,0.00019612,2]
[364403216,1749091841573,-1059.47,0.00019612,2]
[364403217,1749091841583,-440.0,0.00019612,2]
[364403218,1749091841593,-329.12973905,0.00019703,2]
[364403219,1749091841602,-1642.92217957,0.00019728,2]
[364403220,1749091841612,-180.17657304,0.00019746,2]
[364403221,1749091841621,-597.265,0.00019861,2]
[364403223,1749091841631,-834.75,0.00019884,2]
[364403225,1749091841643,-621.63,0.00019884,2]
[364403227,1749091841654,-440.0,0.00019884,2]
[364403229,1749091841666,-440.0,0.00019885,2]
[364403231,1749091841676,-424.78,0.00019885,2]
[364403234,1749091841687,-1053.49,0.00019885,2]
[364403236,1749091841697,-1260.56,0.00019885,2]
[364403238,1749091841707,-440.0,0.00019885,2]
[364403240,1749091841716,-440.0,0.00019885,2]
[364403242,1749091841725,-440.0,0.00019885,2]
[364403244,1749091841735,-1147.19,0.00019885,2]
[364403246,1749091841744,-440.0,0.00019886,2]
[364403248,1749091841753,-604.77,0.00019886,2]
[364403250,1749091841762,-549.16,0.00019886,2]
[364403252,1749091841772,-440.0,0.00019886,2]
[364403254,1749091841781,-556.21,0.00019886,2]
[364403256,1749091841789,-600.26,0.00019886,2]
[364403258,1749091841799,-1059.47,0.00019886,2]
[364403260,1749091841808,-440.0,0.00019886,2]
[364403262,1749091841817,-1642.92217957,0.00019934,2]
[364403264,1749091841827,-151.0,0.0002,2]
[364403266,1749091841837,-151.0,0.0002,2]
[364403268,1749091841848,-41508.0,0.0002,2]
[364403270,1749091841857,-1500.0,0.00020068,2]
[364403272,1749091841867,-1642.92217957,0.00020141,2]
[364403274,1749091841876,-834.75,0.00020158,2]
[364403276,1749091841886,-621.63,0.00020158,2]
[364403278,1749091841895,-440.0,0.00020158,2]
[364403280,1749091841906,-440.0,0.00020159,2]
[364403282,1749091841916,-424.78,0.00020159,2]
[364403284,1749091841926,-1053.49,0.00020159,2]
[364403286,1749091841935,-1260.56,0.00020159,2]
[364403288,1749091841945,-440.0,0.00020159,2]
[364403290,1749091841954,-440.0,0.00020159,2]
[364403292,1749091841964,-440.0,0.00020159,2]
[364403294,1749091841973,-1147.19,0.00020159,2]
[364403296,1749091841982,-440.0,0.0002016,2]
[364403298,1749091841991,-604.77,0.0002016,2]
[364403299,1749091842001,-549.16,0.0002016,2]
[364403301,1749091842011,-440.0,0.0002016,2]
[364403303,1749091842020,-556.21,0.0002016,2]
[364403305,1749091842030,-600.26,0.0002016,2]
[364403308,1749091842040,-1059.47,0.0002016,2]
[364403310,1749091842050,-440.0,0.0002016,2]
[364403312,1749091842059,-263.785765,0.00020187,2]
[364403314,1749091842069,-339.7022397,0.00020235,2]
[364403316,1749091842080,-1642.92217957,0.00020348,3]
[364403318,1749091842090,-834.75,0.00020432,2]
[364403320,1749091842100,-621.63,0.00020432,2]
[364403321,1749091842110,-440.0,0.00020432,2]
[364403324,1749091842121,-440.0,0.00020433,2]
[364403326,1749091842130,-424.78,0.00020433,2]
[364403328,1749091842140,-1053.49,0.00020433,2]
[364403330,1749091842150,-1260.56,0.00020433,2]
[364403332,1749091842161,-440.0,0.00020433,2]
[364403334,1749091842171,-440.0,0.00020433,2]
[364403335,1749091842180,-440.0,0.00020433,2]
[364403337,1749091842190,-1147.19,0.00020433,2]
[364403339,1749091842199,-440.0,0.00020434,2]
[364403341,1749091842208,-604.77,0.00020434,2]
[364403343,1749091842218,-549.16,0.00020434,2]
[364403346,1749091842227,-440.0,0.00020434,2]
[364403348,1749091842237,-556.21,0.00020434,2]
[364403350,1749091842247,-600.26,0.00020434,2]
[364403352,1749091842258,-1059.47,0.00020434,2]
[364403354,1749091842267,-440.0,0.00020434,2]
[364403356,1749091842277,-1000.0,0.00020508,2]
[364403358,1749091842287,-3538.53631238,0.00020508,2]
[364403360,1749091842296,-2653.90223428,0.00020508,7]
[364403362,1749091842305,-5000.0,0.00020508,30]
[364403364,1749091842314,-500.0,0.00020548,2]
[364403366,1749091842324,-500.0,0.00020548,2]
[364403368,1749091842333,-500.0,0.00020548,2]
[364403370,1749091842342,-500.0,0.00020548,2]
[364403372,1749091842352,-500.0,0.00020548,2]
[364403374,1749091842361,-500.0,0.00020548,2]
[364403376,1749091842370,-500.0,0.00020548,2]
[364403378,1749091842379,-289.82689362,0.00020548,2]
[364403379,1749091842389,-500.0,0.00020548,2]
[364403381,1749091842401,-207.4,0.00020553,2]
[364403383,1749091842411,-500.0,0.00020553,2]
[364403385,1749091842421,-500.0,0.00020553,2]
[364403387,1749091842431,-500.0,0.00020553,2]
[364403390,1749091842441,-1800.0,0.00020553,2]
[364403392,1749091842450,-500.0,0.00020553,2]
[364403394,1749091842460,-1800.0,0.00020553,2]
[364403396,1749091842470,-500.0,0.00020553,2]
[364403398,1749091842479,-1800.0,0.00020553,2]
[364403400,1749091842489,-514.26776168,0.00020553,2]
[364403402,1749091842499,-1800.0,0.00020553,2]
[364403404,1749091842509,-1800.0,0.00020553,2]
[364403406,1749091842519,-1800.0,0.00020553,2]
[364403408,1749091842529,-1800.0,0.00020553,2]
[364403410,1749091842540,-1800.0,0.00020553,2]
[364403412,1749091842549,-1800.0,0.00020553,2]
[364403414,1749091842559,-5000.0,0.00020553,2]
[364403416,1749091842568,-1800.0,0.00020553,2]
[364403418,1749091842577,-1800.0,0.00020553,2]
[364403420,1749091842587,-1800.0,0.00020553,2]
[364403422,1749091842596,-1562.78152248,0.00020553,2]
[364403424,1749091842605,-1642.92217957,0.00020555,3]
[364403426,1749091842617,-1959.88,0.000206,2]
[364403428,1749091842626,-834.75,0.00020706,2]
[364403430,1749091842635,-621.63,0.00020706,2]
[364403432,1749091842645,-440.0,0.00020706,2]
[364403434,1749091842655,-440.0,0.00020707,2]
[364403436,1749091842665,-424.78,0.00020707,2]
[364403438,1749091842675,-1053.49,0.00020707,2]
[364403440,1749091842684,-1260.56,0.00020707,2]
[364403442,1749091842694,-440.0,0.00020707,2]
[364403444,1749091842703,-440.0,0.00020707,2]
[364403446,1749091842713,-440.0,0.00020707,2]
[364403448,1749091842723,-1147.19,0.00020707,2]
[364403450,1749091842732,-440.0,0.00020708,2]
[364403452,1749091842741,-604.77,0.00020708,2]
[364403454,1749091842751,-549.16,0.00020708,2]
[364403456,1749091842760,-440.0,0.00020708,2]
[364403458,1749091842769,-556.21,0.00020708,2]
[364403460,1749091842779,-600.26,0.00020708,2]
[364403462,1749091842788,-1059.47,0.00020708,2]
[364403464,1749091842797,-231.60950024,0.00020708,2]
[364403466,1749091842807,-536.0,0.0002076,2]
[364403468,1749091842817,-1642.92217957,0.00020762,3]
[364403470,1749091842826,-1000.0,0.000208,4]
[364403472,1749091842835,-1005.21,0.000208,5]
[364403474,1749091842845,-1642.92217957,0.00020969,4]
[364403476,1749091842854,-834.75,0.0002098,2]
[364403478,1749091842865,-621.63,0.0002098,2]
[364403480,1749091842875,-440.0,0.0002098,2]
[364403482,1749091842884,-440.0,0.00020981,2]
[364403484,1749091842893,-424.78,0.00020981,2]
[364403486,1749091842903,-1053.49,0.00020981,2]
[364403488,1749091842915,-1260.56,0.00020981,2]
[364403490,1749091842925,-440.0,0.00020981,2]
[364403493,1749091842934,-440.0,0.00020981,2]
[364403496,1749091842945,-440.0,0.00020981,2]
[364403499,1749091842955,-1147.19,0.00020981,2]
[364403501,1749091842966,-440.0,0.00020982,2]
[364403502,1749091842976,-604.77,0.00020982,2]
[364403515,1749091843089,-549.16,0.00020982,2]
[364403517,1749091843099,-440.0,0.00020982,2]
[364403519,1749091843108,-556.21,0.00020982,2]
[364403521,1749091843119,-600.26,0.00020982,2]
[364403523,1749091843128,-1059.47,0.00020982,2]
[364403525,1749091843137,-5000.0,0.00021101,2]
[364403527,1749091843146,-1500.0,0.00021164,2]
[364403529,1749091843158,-1642.92217957,0.00021176,4]
[364403532,1749091843168,-339.7022397,0.00021206,2]
[364403534,1749091843177,-834.75,0.00021254,2]
[364403536,1749091843187,-621.63,0.00021254,2]
[364403538,1749091843196,-291.17290979,0.00021254,2]
[364403540,1749091843205,-440.0,0.00021255,2]
[364403542,1749091843214,-424.78,0.00021255,2]
[364403544,1749091843224,-1053.49,0.00021255,2]
[364403546,1749091843233,-1260.56,0.00021255,2]
[364403548,1749091843242,-440.0,0.00021255,2]
[364403550,1749091843251,-440.0,0.00021255,2]
[364403552,1749091843261,-440.0,0.00021255,2]
[364403554,1749091843270,-1147.19,0.00021255,2]
[364403556,1749091843279,-440.0,0.00021256,2]
[364403558,1749091843288,-604.77,0.00021256,2]
[364403560,1749091843298,-549.16,0.00021256,2]
[364403562,1749091843307,-440.0,0.00021256,2]
[364403564,1749091843317,-556.21,0.00021256,2]
[364403566,1749091843326,-600.26,0.00021256,2]
[364403568,1749091843336,-1059.47,0.00021256,2]
[364403570,1749091843346,-151.0,0.00021257,2]
[364403572,1749091843356,-151.0,0.00021257,2]
[364403574,1749091843366,-1642.92217957,0.00021383,5]
[364403576,1749091843377,-834.75,0.00021528,2]
[364403578,1749091843387,-621.63,0.00021528,2]
[364403580,1749091843397,-440.0,0.00021529,2]
[364403582,1749091843408,-424.78,0.00021529,2]
[364403584,1749091843418,-1053.49,0.00021529,2]
[364403586,1749091843429,-1260.56,0.00021529,2]
[364403588,1749091843439,-360.78245644,0.00021529,2]
[364403590,1749091843449,-440.0,0.00021529,2]
[364403592,1749091843459,-440.0,0.00021529,2]
[364403594,1749091843469,-1147.19,0.00021529,2]
[364403596,1749091843479,-180786.07123,0.00021529,2]
[364403598,1749091843489,-440.0,0.0002153,2]
[364403600,1749091843499,-604.77,0.0002153,2]
[364403602,1749091843509,-549.16,0.0002153,2]
[364403604,1749091843520,-440.0,0.0002153,2]
[364403606,1749091843530,-556.21,0.0002153,2]
[364403608,1749091843540,-600.26,0.0002153,2]
[364403610,1749091843550,-1059.47,0.0002153,2]
[364403612,1749091843559,-154.10412022,0.00021532,2]
[364403614,1749091843569,-500.0,0.00021573,2]
[364403616,1749091843579,-500.88600089,0.00021573,2]
[364403618,1749091843589,-515.26444385,0.00021573,2]
[364403620,1749091843599,-629.98011552,0.00021573,2]
[364403622,1749091843608,-501.77715105,0.00021573,2]
[364403624,1749091843618,-500.0,0.00021573,2]
[364403626,1749091843628,-500.74783678,0.00021573,2]
[364403628,1749091843640,-518.92753543,0.00021573,2]
[364403630,1749091843650,-500.0,0.00021573,2]
[364403632,1749091843661,-500.0,0.00021573,2]
[364403634,1749091843671,-501.60711847,0.00021573,2]
[364403636,1749091843682,-501.12619978,0.00021573,2]
[364403639,1749091843692,-600.0,0.00021573,2]
[364403641,1749091843703,-503.52372284,0.00021573,2]
[364403643,1749091843713,-1642.92217957,0.0002159,5]
[364403645,1749091843723,-250.0,0.00021599,2]
[364403647,1749091843732,-5000.0,0.00021649,2]
[364403649,1749091843742,-1642.92217957,0.00021797,6]
[364403651,1749091843752,-1000.0,0.000218,7]
[364403653,1749091843762,-834.75,0.00021802,2]
[364403655,1749091843771,-621.63,0.00021802,2]
[364403657,1749091843780,-440.0,0.00021803,2]
[364403659,1749091843790,-424.78,0.00021803,2]
[364403661,1749091843800,-1053.49,0.00021803,2]
[364403663,1749091843809,-1260.56,0.00021803,2]
[364403665,1749091843819,-440.0,0.00021803,2]
[364403667,1749091843828,-440.0,0.00021803,2]
[364403669,1749091843837,-1147.19,0.00021803,2]
[364403671,1749091843847,-440.0,0.00021804,2]
[364403673,1749091843857,-604.77,0.00021804,2]
[364403675,1749091843867,-549.16,0.00021804,2]
[364403677,1749091843877,-440.0,0.00021804,2]
[364403679,1749091843886,-556.21,0.00021804,2]
[364403681,1749091843896,-600.26,0.00021804,2]
[364403683,1749091843906,-1059.47,0.00021804,2]
[364403685,1749091843917,-501.32639971,0.00021873,2]
[364403687,1749091843927,-160.0,0.00021914,3]
[364403689,1749091843937,-201.92208286,0.00021917,2]
[364403691,1749091843946,-505.67107245,0.00021917,2]
[364403693,1749091843956,-215.0738,0.00021922,2]
[364403695,1749091843965,-76195.07398689,0.00022,2]
[364403697,1749091843976,-1855.77,0.00022,7]
[364403699,1749091843985,-248.0,0.00022,2]
[364403701,1749091843996,-1642.92217957,0.00022003,6]
[364403703,1749091844005,-834.75,0.00022076,2]
[364403705,1749091844015,-621.63,0.00022076,2]
[364403707,1749091844025,-440.0,0.00022077,2]
[364403709,1749091844034,-424.78,0.00022077,2]
[364403711,1749091844044,-1053.49,0.00022077,2]
[364403713,1749091844054,-1260.56,0.00022077,2]
[364403715,1749091844063,-440.0,0.00022077,2]
[364403717,1749091844076,-440.0,0.00022077,2]
[364403719,1749091844086,-1147.19,0.00022077,2]
[364403721,1749091844095,-561.60161946,0.00022078,2]
[364403723,1749091844105,-604.77,0.00022078,2]
[364403726,1749091844115,-549.16,0.00022078,2]
[364403728,1749091844130,-432.9407383,0.00022078,2]
[364403730,1749091844140,-556.21,0.00022078,2]
[364403732,1749091844151,-600.26,0.00022078,2]
[364403734,1749091844162,-1059.47,0.00022078,2]
[364403736,1749091844172,-500.54533957,0.00022121,2]
[364403738,1749091844181,-502.46747546,0.00022121,2]
[364403740,1749091844191,-1000.0,0.00022121,2]
[364403742,1749091844200,-1000.0,0.00022121,2]
[364403744,1749091844210,-1200.0,0.00022121,2]
[364403746,1749091844219,-339.7022397,0.00022178,2]
[364403748,1749091844229,-248.0,0.00022192,7]
[364403750,1749091844238,-5000.0,0.00022197,2]
[364403753,1749091844251,-1642.92217957,0.0002221,6]
[364403755,1749091844260,-1500.0,0.0002226,2]
[364403757,1749091844270,-151.0,0.000223,7]
[364403759,1749091844279,-290.464696,0.000223,7]
[364403761,1749091844288,-155.962257,0.000223,7]
[364403763,1749091844298,-154.53028,0.000223,7]
[364403765,1749091844307,-151.0,0.000223,7]
[364403767,1749091844316,-1959.88,0.000223,7]
[364403769,1749091844325,-834.75,0.0002235,2]
[364403771,1749091844336,-621.63,0.0002235,2]
[364403773,1749091844346,-440.0,0.00022351,2]
[364403775,1749091844355,-424.78,0.00022351,2]
[364403777,1749091844365,-1053.49,0.00022351,2]
[364403779,1749091844375,-1260.56,0.00022351,2]
[364403781,1749091844385,-440.0,0.00022351,2]
[364403783,1749091844394,-440.0,0.00022351,2]
[364403785,1749091844404,-1147.19,0.00022351,2]
[364403787,1749091844414,-604.77,0.00022352,2]
[364403789,1749091844423,-27.18074605,0.00022352,2]
[364403800,1749091844525,-521.97925395,0.00022352,2]
[364403803,1749091844536,-119.02932189,0.00022352,2]
[364403805,1749091844549,-437.18067811,0.00022352,2]
[364403807,1749091844559,-600.26,0.00022352,2]
[364403809,1749091844569,-1059.47,0.00022352,2]
[364403811,1749091844578,-204.870364,0.00022353,7]
[364403813,1749091844588,-1642.92217957,0.00022417,7]
[364403815,1749091844599,-160.982791,0.00022493,2]
[364403817,1749091844609,-200.0,0.000225,7]
[364403819,1749091844619,-202.00995031,0.000225,7]
[364403821,1749091844628,-684.454349,0.0002254,3]
[364403823,1749091844638,-32298.19562715,0.000226,2]
[364403825,1749091844650,-2604.83895705,0.000226,2]
[364403827,1749091844663,-6525.15437287,0.000226,2]
[364403829,1749091844674,-4586.07935314,0.000226,2]
[364403840,1749091844763,-324.97025148,0.00018515,2]
[364403842,1749091844775,-115.02974852,0.00018515,2]
[364403844,1749091844785,-440.0,0.00018789,2]
[364403846,1749091844794,-440.0,0.00019063,2]
[364403848,1749091844804,-348.82173371,0.00019337,2]
[364403851,1749091844815,-91.17826629,0.00019337,2]
[364403852,1749091844825,-440.0,0.00019611,2]
[364403854,1749091844835,-440.0,0.00019611,2]
[364403856,1749091844844,-440.0,0.00019885,2]
[364403858,1749091844853,-440.0,0.00019885,2]
[364403860,1749091844863,-440.0,0.00020159,2]
[364403862,1749091844872,-440.0,0.00020159,2]
[364403864,1749091844882,-440.0,0.00020433,2]
[364403866,1749091844891,-440.0,0.00020433,2]
[364403868,1749091844901,-440.0,0.00020707,2]
[364403870,1749091844911,-440.0,0.00020981,2]
[364403873,1749091844921,-440.0,0.00021255,2]
[364403875,1749091844931,-233.58401965,0.00021529,2]
[364403877,1749091844940,-7873.88630433,0.000226,2]
[364403879,1749091844952,-7293.24,0.000226,2]
[364403881,1749091844964,-2521.23683725,0.000226,2]
[364403883,1749091844978,-2889.24096322,0.000226,2]
[364403886,1749091844997,-2707.59966657,0.000226,2]
[364403891,1749091845031,-561.22897901,0.000226,2]
[364403893,1749091845043,-2222.58235517,0.000226,2]
[364403910,1749091845208,-440.0,0.00020707,2]
[364403912,1749091845218,-440.0,0.00020981,2]
[364403914,1749091845227,-268.90102382,0.00021255,2]
[364403917,1749091845239,-171.09897618,0.00021255,2]
[364403919,1749091845249,-440.0,0.00021529,2]
[364403921,1749091845258,-440.0,0.00021803,2]
[364403923,1749091845268,-440.0,0.00022077,2]
[364403925,1749091845278,-440.0,0.00022351,2]
[364403927,1749091845287,-2849.3950003,0.000226,2]
[364403929,1749091845299,-303.486814,0.000226,2]
[364404057,1749091846518,-440.0,0.00017418,2]
[364404059,1749091846530,-440.0,0.00017692,2]
[364404061,1749091846539,-16435.53612206,0.000226,2]
[364406700,1749092103162,694.67771338,0.000161,2]
[364406721,1749092705914,47445.37647763,0.00025,120]
[364406722,1749092735441,10000.0,0.000161,2]
[364406725,1749092749433,10000.0,0.00021918,60]
[364406728,1749092756726,10000.0,0.00025,120]
[364406729,1749092764849,270.491562,0.00013699,2]
[364406730,1749092769497,457.3089519,0.000161,2]
[364406734,1749092780830,10000.0,0.00021918,60]
[364406735,1749092788153,10000.0,0.00025,120]
[364406736,1749092796842,10000.0,0.00021918,60]
[364406737,1749092803759,10000.0,0.00021918,60]
[364406738,1749092814678,5584.59060176,0.00016,2]
[364406739,1749092814706,4415.40939824,0.00016,2]
[364406775,1749093032527,-1200.0,0.00016099,2]
[364406777,1749093032537,-4566.09454296,0.000161,2]
[364406782,1749093032580,-4976.59650514,0.000161,2]
[364406784,1749093032590,-208.374579,0.00016129,2]
[364406786,1749093032599,-244.516872,0.00016177,2]
[364406788,1749093032609,-300.0,0.00016416,2]
[364406790,1749093032618,-300.0,0.00016416,2]
[364406792,1749093032627,-300.0,0.00016416,2]
[364406794,1749093032637,-300.0,0.00016416,2]
[364406796,1749093032647,-248.521503,0.00016418,2]
[364406798,1749093032656,-947.8185137,0.00016693,2]
[364406800,1749093032666,-2000.0,0.00016712,2]
[364406802,1749093032675,-2000.0,0.00016986,2]
[364406804,1749093032685,-2000.0,0.0001726,2]
[364406806,1749093032695,-300.0,0.00017406,2]
[364406808,1749093032704,-440.0,0.00017407,2]
[364406810,1749093032713,-1134.6,0.00017407,2]
[364406812,1749093032722,-14255.78070157,0.00017407,2]
[364406864,1749093038515,-35744.21929843,0.00017407,2]
[364406865,1749093038526,-440.0,0.00017408,2]
[364406866,1749093038535,-440.0,0.00017408,2]
[364406867,1749093038544,-440.0,0.00017408,2]
[364406868,1749093038553,-440.0,0.00017408,2]
[364406869,1749093038563,-440.0,0.00017408,2]
[364406870,1749093038573,-440.0,0.00017408,2]
[364406871,1749093038582,-440.0,0.00017408,2]
[364406872,1749093038591,-1030.4,0.00017408,2]
[364406873,1749093038600,-440.0,0.00017408,2]
[364406874,1749093038609,-440.0,0.00017408,2]
[364406875,1749093038619,-461.79920417,0.00017408,2]
[364406876,1749093038628,-440.0,0.00017408,2]
[364406877,1749093038637,-440.0,0.00017408,2]
[364406878,1749093038647,-904.68,0.00017408,2]
[364406879,1749093038656,-1584.37,0.00017408,2]
[364406880,1749093038665,-151.0,0.00017409,2]
[364406882,1749093038674,-151.0,0.00017409,2]
[364406883,1749093038684,-151.0,0.00017409,2]
[364406884,1749093038694,-151.0,0.00017409,2]
[364406885,1749093038703,-151.0,0.00017409,2]
[364406886,1749093038712,-151.0,0.00017409,2]
[364406887,1749093038722,-151.0,0.00017409,2]
[364406888,1749093038731,-151.0,0.00017409,2]
[364406889,1749093038740,-151.0,0.00017409,2]
[364406890,1749093038749,-151.0,0.00017409,2]
[364406891,1749093038758,-151.0,0.00017409,2]
[364406892,1749093038767,-151.0,0.00017409,2]
[364406893,1749093038776,-151.0,0.00017409,2]
[364406894,1749093038785,-151.0,0.00017409,2]
[364406895,1749093038794,-163.46111123,0.00017409,2]
[364406896,1749093038803,-393.6,0.00017409,3]
[364406897,1749093038812,-196.8,0.00017409,3]
[364406898,1749093038821,-590.44,0.00017409,3]
[364406899,1749093038831,-440.0,0.00017415,2]
[364406900,1749093038840,-440.0,0.00017415,2]
[364406901,1749093038849,-440.0,0.00017415,2]
[364406902,1749093038858,-1438.38,0.00017415,2]
[364406903,1749093038867,-440.0,0.00017415,2]
[364406904,1749093038876,-440.0,0.00017415,2]
[364406905,1749093038885,-440.0,0.00017415,2]
[364406906,1749093038894,-440.0,0.00017415,2]
[364406907,1749093038903,-440.0,0.00017415,2]
[364406908,1749093038912,-440.0,0.00017415,2]
[364406909,1749093038921,-440.0,0.00017415,2]
[364406910,1749093038930,-440.0,0.00017415,2]
[364406911,1749093038939,-440.0,0.00017415,2]
[364406912,1749093038949,-440.0,0.00017415,2]
[364406913,1749093038958,-440.0,0.00017415,2]
[364406914,1749093038967,-581.05,0.00017415,2]
[364406915,1749093038975,-500.0,0.00017415,2]
[364406916,1749093038984,-507.54581561,0.00017415,2]
[364406917,1749093038993,-440.0,0.00017415,2]
[364406918,1749093039002,-440.0,0.00017415,2]
[364406919,1749093039011,-440.0,0.00017415,2]
[364406920,1749093039020,-440.0,0.00017415,2]
[364406921,1749093039029,-440.0,0.00017415,2]
[364406922,1749093039038,-440.0,0.00017415,2]
[364406923,1749093039047,-440.0,0.00017415,2]
[364406924,1749093039056,-440.0,0.00017415,2]
[364406925,1749093039065,-656.45,0.00017415,2]
[364406926,1749093039074,-440.0,0.00017415,2]
[364406927,1749093039084,-440.0,0.00017415,2]
[364406928,1749093039093,-440.0,0.00017416,2]
[364406929,1749093039102,-440.0,0.00017416,2]
[364406930,1749093039111,-440.0,0.00017416,2]
[364406931,1749093039120,-439.41305666,0.00017416,2]
[364406932,1749093039131,-440.0,0.00017416,2]
[364406933,1749093039139,-440.0,0.00017416,2]
[364406934,1749093039149,-402.36592079,0.00017416,2]
[364406935,1749093039158,-260.0,0.00017416,2]
[364406936,1749093039168,-530.36,0.00017416,2]
[364406937,1749093039177,-211.61832638,0.00017416,2]
[364406938,1749093039187,-440.0,0.00017416,2]
[364406939,1749093039197,-434.71521467,0.00017416,2]
[364406940,1749093039206,-440.0,0.00017416,2]
[364406941,1749093039216,-438.91113516,0.00017416,2]
[364406942,1749093039225,-440.0,0.00017416,2]
[364406943,1749093039234,-432.394537,0.00017416,2]
[364406944,1749093039247,-433.54504215,0.00017416,2]
[364406945,1749093039256,-497.92946374,0.00017416,2]
[364406946,1749093039265,-437.38259449,0.00017416,2]
[364406947,1749093039274,-432.02758038,0.00017416,2]
[364406948,1749093039283,-452.27517922,0.00017416,2]
[364406949,1749093039292,-432.80568324,0.00017416,2]
[364406950,1749093039301,-432.21462427,0.00017416,2]
[364406951,1749093039311,-550.33290083,0.00017416,2]
[364406952,1749093039320,-403.71818352,0.00017416,2]
[364406953,1749093039329,-434.92044058,0.00017416,2]